Cogmind - Beta 15 @@@ ROGUE MODE // 2025.05.30 @ 18:35:11 Player: SuperSwiss Result: Destroyed by D-53 Grenadier with Mini Grenade Launcher Performance ------------- Evolutions (0) 0 Regions Visited (2) 400 Robots Destroyed (17) 85 Value Destroyed (363) 363 Prototype IDs (2) 40 Alien Tech Used (0) 0 Bonus (0) 0 TOTAL SCORE: 888 Bonus ------- None Cogmind --------- Core Integrity 0/250 Matter 227/300 Energy 100/100 System Corruption 0% Temperature Cool (0) Movement Core (800) Ox15 Location -10/Mines Parts ------- > --- POWER (1) -------- (None) > --- PROPULSION (2) --- Improved Treads > --- UTILITY (2) ------ High-capacity Storage Unit Sensor Array > --- WEAPON (2) ------- Grenade Launcher Rocket Launcher > --- INVENTORY (20) --- Ion Engine Improved Treads Improved Treads Improved Treads Compact Wheel Improved Terrain Scanner Targeting Computer Heavy EM Pulse Gun Heavy EM Pulse Gun Heavy EM Pulse Gun Heavy EM Pulse Gun Assault Rifle Assault Rifle Assault Rifle Assault Rifle Grenade Launcher Maul Peak State ------------ > --- POWER ------------ Ion Engine > --- PROPULSION ------- Improved Treads Wheel > --- UTILITY ---------- High-capacity Storage Unit Sensor Array > --- WEAPON ----------- Assault Rifle Rocket Launcher > --- INVENTORY -------- Ion Engine Improved Treads Improved Treads Improved Treads Compact Wheel Improved Terrain Scanner Targeting Computer Heavy EM Pulse Gun Heavy EM Pulse Gun Heavy EM Pulse Gun Heavy EM Pulse Gun Assault Rifle Assault Rifle Assault Rifle Grenade Launcher Grenade Launcher Maul [Rating: 11] Favorites ----------- Power Ion Engine Engine Ion Engine Propulsion Wheel Treads Light Treads Wheel Wheel Utility Sensor Array Device Sensor Array Storage High-capacity Storage Unit Weapon Assault Rifle Ballistic Gun Assault Rifle Launcher Rocket Launcher Special Weapon Mining Laser Build | -11 -10 -10 ------- Run | Yrd Mat Min Slots Evolved . | . . . Power . | . . . Propulsion . | . . . Utility . | . . . Weapon . | . . . Parts Attached 18 | 8 8 2 Power 1 | 1 . . Engine 1 | 1 . . Core . | . . . Reactor . | . . . Propulsion 5 | 2 3 . Treads 3 | 1 2 . Leg . | . . . Wheel 2 | 1 1 . Hover . | . . . Flight . | . . . Utility 5 | 2 3 . Device 3 | 1 2 . Storage 2 | 1 1 . Processor . | . . . Hackware . | . . . Protection . | . . . Artifact . | . . . Weapon 7 | 3 2 2 Energy Gun . | . . . Energy Cannon . | . . . Ballistic Gun 3 | 3 . . Ballistic Cannon . | . . . Launcher 3 | . 1 2 Special Weapon 1 | . 1 . Impact Weapon . | . . . Slashing Weapon . | . . . Piercing Weapon . | . . . Special Melee Weapon . | . . . Unidentified Prototypes . | . . . Parts Lost 2 | . . 2 Power 1 | . . 1 Propulsion 1 | . . 1 Utility . | . . . Weapon . | . . . Highest Loss Streak 2 | . . 2 To Critical Strikes . | . . . Average Backups 9 | 4 8 16 Power . | . 1 1 Propulsion 2 | 1 2 4 Utility 1 | . 1 2 Weapon 4 | 1 4 9 Tool/Special . | . . . Unused Backups 13 | . . 13 Power 1 | . . 1 Propulsion 3 | . . 3 Utility 1 | . . 1 Weapon 8 | . . 8 Tool/Special . | . . . Average Slot Usage (%) 99 | . 99 100 Engine 14 | . 14 14 Treads 14 | . 15 14 Wheel 13 | . 12 14 Device 14 | . 14 14 Storage 14 | . 14 14 Ballistic Gun 26 | . 27 24 Peak Build Rating 11 | 9 10 11 Average Rating 8 | 5 8 10 On Entrance 6 | . 9 10 Naked Turns . | . . . Heaviest Build 53 | 15 50 53 Greatest Support 20 | 10 20 10 Greatest Overweight (x) 5 | 1 4 5 Average Overweight (x) 3 | . 3 4 Largest Inventory Capacity 20 | 8 20 20 Average Capacity 17 | 7 18 20 Most Carried 17 | 6 16 17 Average Carried 9 | 4 9 16 Final Capacity 20 | 8 20 20 Final Carried 17 | 5 16 17 Class Distribution -------------------- 100% | Mutant Dominant Class ---------------- Mutant | -10/Materials Mutant | -10/Mines Resources | -11 -10 -10 ----------- Run | Yrd Mat Min Matter Collected 849 | 376 473 . Remotely . | . . . Salvage Created 630 | 158 472 . Parts 45 | 15 30 . Haulers Intercepted 2 | . 2 . Recyclers Shooed 1 | 1 . . Parts Field Recycled . | . . . Retrieved Matter . | . . . Parts Self-Destructed . | . . . Prevented . | . . . Kills | -11 -10 -10 ------- Run | Yrd Mat Min Combat Hostiles Destroyed 8 | . 8 . Guns 8 | . 8 . Classes Destroyed 4 | 2 2 . Tunneler 6 | 5 1 . Hauler 2 | . 2 . Recycler 1 | 1 . . Grunt 8 | . 8 . Best Kill Streak 4 | 3 4 . Combat Bots Only 4 | . 4 . Max Kills in Single Turn 1 | 1 1 . Gunslinging . | . . . Exploded . | . . . Melee . | . . . Uniques/NPCs Destroyed . | . . . Combat | -11 -10 -10 -------- Run | Yrd Mat Min Hostile Shots Fired 57 | . 49 8 Missed 12 | . 12 . Hits 45 | . 37 8 Projectile 45 | . 37 8 AOE 8 | . . 8 Damage Taken 771 | . 458 313 Core 267 | . 131 136 Absorbed by Shields . | . . . Regen/Repaired (Parts) 63 | . 63 . Core Remaining (%) 100 | 100 . . Volleys Fired 71 | 16 52 3 Largest 2 | 2 2 2 Hottest 120 | 40 120 63 Shots Fired 141 | 32 103 6 Gun 133 | 32 101 . Cannon . | . . . Launcher 6 | . . 6 Special 2 | . 2 . Kinetic 133 | 32 101 . Thermal 2 | . 2 . Explosive 6 | . . 6 Electromagnetic . | . . . Robot Hit Streak 9 | 5 9 5 Robot Miss Streak 6 | 2 6 1 Penetration Max . | . . . Secondary Targets . | . . . Shots Hit Robots 95 | 20 70 5 Core Hits 36 | 7 23 6 Critical Kills 1 | . 1 . Critical Parts Destroyed 1 | . 1 . Critical Strikes 2 | . 2 . Destroy 2 | . 2 . Melee Attacks . | . . . Impact . | . . . Slashing . | . . . Piercing . | . . . Sneak Attacks . | . . . Combat Hostiles . | . . . Follow-up Attacks . | . . . Damage Inflicted 1242 | 265 878 99 Guns 1143 | 265 878 . Cannons . | . . . Explosions 99 | . . 99 Melee . | . . . Ramming . | . . . Kinetic 1143 | 265 878 . Thermal . | . . . Explosive 99 | . . 99 Electromagnetic . | . . . Impact . | . . . Slashing . | . . . Piercing . | . . . Highest Corruption . | . . . Average Corruption . | . . . Corruption Purged . | . . . Corruption Blocked . | . . . Overload Shots . | . . . Overflow Damage . | . . . Projectiles . | . . . Explosions . | . . . Melee . | . . . Knockbacks . | . . . Impact . | . . . Kinetic . | . . . Secondary . | . . . Self-Inflicted Damage . | . . . Shots . | . . . Rammed . | . . . Targets Rammed . | . . . Kicked . | . . . Crushed . | . . . Highest Temperature 20 | . 20 5 Average Temperature 5 | . 6 2 Received Heat Transfer 264 | . 264 . Siege Activations . | . . . Martial Activations . | . . . Shielding Activations . | . . . Robots Disrupted . | . . . Combat Hostiles . | . . . Robots Corrupted . | . . . Combat Hostiles . | . . . Parts Fried . | . . . Impact Corruptions . | . . . Robots Melted . | . . . Combat Hostiles . | . . . Parts Melted . | . . . Heat Transferred . | . . . Parts Sabotaged . | . . . Parts Stolen . | . . . Parts Stripped . | . . . Power Chain Reactions . | . . . Alert | -11 -10 -10 ------- Run | Yrd Mat Min Maximum Alert Level . | . . . Low Security (%) 100 | 100 100 100 Level 1 . | . . . Level 2 . | . . . Level 3 . | . . . Level 4 . | . . . Level 5 . | . . . High Security . | . . . Max Security . | . . . Peak Influence 85 | 10 85 17 Initial . | . . . Average 16 | 1 20 . Influence Increases 309 | 30 262 17 Destroy 0b10 Robot/C 160 | . 160 . Destroy 0b10 Robot/NC 45 | 30 15 . Destroy Leader 44 | . 44 . Successful Hack 38 | . 38 . Destroy Structure 22 | . 5 17 Influence Decreases 309 | 30 262 17 Time Decay 292 | 30 262 . Lost Part 17 | . . 17 Squads Dispatched 1 | . 1 . Investigation . | . . . Extermination . | . . . Reinforcement 1 | . 1 . Assault . | . . . Garrison . | . . . Intercept . | . . . Searches Triggered . | . . . Construction Impeded . | . . . Haulers Reinforced . | . . . Active Scanning Responses . | . . . Cargo Convoy Interrupts . | . . . Stealth | -11 -10 -10 --------- Run | Yrd Mat Min Distress Signals 1 | . 1 . Communications Jammed . | . . . Distress Signals . | . . . Times Spotted 22 | . 20 2 Peak Tracking Total 6 | . 6 2 Tactical Retreats . | . . . Traps | -11 -10 -10 ------- Run | Yrd Mat Min Traps Triggered . | . . . Indirectly . | . . . Trap Hack Attempts . | . . . Triggered . | . . . Disarmed 8 | . 8 . Reprogrammed . | . . . Reused . | . . . Traps Extracted . | . . . Installed . | . . . Triggered . | . . . Machines | -11 -10 -10 ---------- Run | Yrd Mat Min Machines Disabled . | . . . Max in Single Turn . | . . . Machines Repaired . | . . . Machines Dismantled . | . . . Machines Sabotaged . | . . . Overloaded Fab Kills . | . . . Hacking | -11 -10 -10 --------- Run | Yrd Mat Min Machines Accessed 8 | . 8 . Terminals 7 | . 7 . Fabricators . | . . . Repair Stations 1 | . 1 . Recycling Units . | . . . Scanalyzers . | . . . Garrison Access . | . . . Total Hacks 31 | . 31 . Successful 20 | . 20 . Failed 11 | . 11 . Catastrophic 1 | . 1 . Database Lockouts . | . . . Manual 14 | . 14 . Terminals 29 | . 29 . Fabricators . | . . . Repair Stations 2 | . 2 . Recycling Units . | . . . Scanalyzers . | . . . Garrison Access . | . . . Terminal Hacks 11 | . 11 . Prototype ID Bank 1 | . 1 . Locate Traps 3 | . 3 . Disarm Traps 2 | . 2 . Maintenance Status 1 | . 1 . Patrol Status 1 | . 1 . Hauler Manifests 1 | . 1 . Registered Components 1 | . 1 . Registered Prototypes 1 | . 1 . Fabricator Hacks . | . . . Repair Station Hacks 2 | . 2 . Scan Component 1 | . 1 . Repair 1 | . 1 . Recycling Unit Hacks . | . . . Scanalyzer . | . . . Garrison Access Hacks . | . . . Unauthorized Hacks 7 | . 7 . Terminals 7 | . 7 . Assimilate 1 | . 1 . Botnet 1 | . 1 . Skim 5 | . 5 . Fabricators . | . . . Repair Stations . | . . . Recycling Units . | . . . Scanalyzers . | . . . Garrison Access . | . . . Data Cores Recovered . | . . . Used . | . . . Hacking Detections 7 | . 7 . Full Trace Events . | . . . Feedback Events . | . . . Feedback Blocked . | . . . Robot Schematics Acquired . | . . . Robots Built . | . . . Authchips . | . . . Time . | . . . Total Robot Build Rating . | . . . Part Schematics Acquired . | . . . Parts Built . | . . . Authchips . | . . . Time . | . . . Total Part Build Rating . | . . . Parts Repaired 1 | . 1 . Time 13 | . 13 . Parts Recycled . | . . . Recycled Matter . | . . . Retrieved Matter . | . . . Retrieved Components . | . . . Parts Scanalyzed . | . . . Part Schematics Acquired . | . . . Parts Damaged . | . . . Bothacking | -11 -10 -10 ------------ Run | Yrd Mat Min Used RIF Installer . | . . . Robots Hacked . | . . . Non-combat . | . . . Combat . | . . . Robot Hacks Applied . | . . . Relay Couplers Released . | . . . Fabnet Peak Effective % . | . . . Robots Rewired . | . . . Allies Hacked . | . . . Hacks Repelled . | . . . Allies | -11 -10 -10 -------- Run | Yrd Mat Min Total Allies 1 | . 1 . Largest Group 1 | . 1 1 Highest-Rated Group 10 | . 10 10 Highest-Rated Ally 10 | . 10 10 Total Orders . | . . . Ally Attacks . | . . . Total Damage . | . . . Kills . | . . . Allies Corrupted . | . . . Allies Melted . | . . . Intel | -11 -10 -10 ------- Run | Yrd Mat Min Active Infowar (turns) 1281 | 7 1117 157 Sensors 1253 | . 1096 157 Terrain 28 | 7 21 . Robot Analysis Total . | . . . Derelict Logs Recovered 1 | . . 1 Drone Launches . | . . . Drone Recoveries . | . . . Exploration | -11 -10 -10 ------------- Run | Yrd Mat Min Turns Passed 1403 | 129 1117 157 Spaces Moved 778 | 65 624 89 Core 2 | 2 . . Treads 14 | . 14 . Legs . | . . . Wheels 762 | 63 610 89 Hover . | . . . Flight . | . . . Fastest Speed 50 | 50 95 140 Average Speed 133 | 91 136 140 Slowest Speed 160 | 95 160 155 Overloaded Moves . | . . . Propulsion Burnouts . | . . . Robots Hopped . | . . . Potential Cave-ins . | . . . Cave-ins Triggered . | . . . Exploration Rate (%) 40 | 3 96 22 Regions Visited 2 Branch Regions 1 Pre-discovered Areas 1 | . . 1 Known Exits Taken . | . . . Unknown Exits Taken 2 | 1 1 . Scrap Searched . | . . . Spaces Dug 2 | . 2 . Terrain Destroyed 30 | . 2 28 Melee . | . . . Projectile 2 | . 2 . AOE 28 | . . 28 Terrain Rammed . | . . . Walls Destroyed . | . . . Machines Disabled . | . . . Actions | -11 -10 -10 --------- Run | Yrd Mat Min Total 991 | 98 778 115 Wait 88 | 4 64 20 Move 776 | 64 623 89 Hop . | . . . Pick Up 21 | 6 14 1 Fast Attach 8 | 6 2 . Attach 3 | 1 2 . Detach 1 | . 1 . Swap 16 | 1 13 2 Drop 7 | . 7 . Fire 71 | 16 52 3 Melee . | . . . Ram . | . . . Kick . | . . . Crush . | . . . Escape Stasis . | . . . Rewire . | . . . Trap . | . . . Miscellaneous . | . . . Route ------- -11/Scrapyard -10/Materials (discovered 6 exits: *Mat x3 / [*Min x2] / Sub) -10/Mines (discovered 1 exit: *Mat) History --------- Turn | Location | Event 8 | -11/Scrapyard | Discovered new exit (range 16) 130 | -11/Scrapyard | Entered Materials 307 | -10/Materials | Build established: Mutant 432 | -10/Materials | Discovered new exit (range 9) 533 | -10/Materials | Discovered new exit (range 7) 673 | -10/Materials | Discovered new exit (range 16) 784 | -10/Materials | Core integrity fell below 50% 971 | -10/Materials | Discovered new exit (range 15) 1040 | -10/Materials | Repaired Assault Rifle 1074 | -10/Materials | Identified exit to Subcaves 1074 | -10/Materials | Identified exit to Materials 1201 | -10/Materials | Learned location of 2 exits from Subcaves 1247 | -10/Materials | Entered Mines 1247 | -10/Mines | Accompanied by 1 ally 1311 | -10/Mines | Discovered exit to Materials (range 11) 1324 | -10/Mines | Learned location of Storage (-8) 1326 | -10/Mines | Received a Rocket Launcher from a helpful Derelict 1387 | -10/Mines | Assembled infested the area 1401 | -10/Mines | Core integrity fell below 20% 1404 | -10/Mines | Destroyed by D-53 Grenadier with Mini Grenade Launcher Last Messages --------------- 01323_ ZG-45G(g): "Everyone knows a good old rocket launcher goes a long way." 01324_ ZG-45G(g): "Need to get rid of a swarm? Done. Need a big hole in the wall? Done." 01324_ Acquired derelict log, extracted data. World map updated: -8/Storage. 01325_ ZG-45G(g): "Need a small hole in the wall? Leave that to the mining laser wimps, I say!" 01326_ ZG-45G(g): "Would you like a rocket launcher? I know I would if I were you, so I'm going to lend you mine." 01326_ ZG-45G(g) slips back into the shadows. 01328_ Acquired Rocket Launcher. 01342_ K-01 Serf collects debris. 01387_ ALERT: Infestation in the mines, dispatching Demolisher response squad. 01396_ C-30 ARC bursts open, deploying its payload. 01396_ D-53 Grenadier unfolds itself. 01396_ Technician 1a destroyed. 01399_ U-05 Engineer builds a Wall. 01402_ Ion Engine destroyed. 01403_ The unstable cave ceiling collapses. 01403_ Wheel destroyed. Map ----- +----------------------------------------------------+ | ??????????????????????????????????????????? | | ??????????????????????????????????????????? | | ??????????????????????????????????????????? | | ??????????????????????????????????????????? | | ??????????????????????????????????????????? | | ??????????????????????????????????????????? | | ??????????????????????????????????????????? | | ??????????????????????????????????????????? | | ??????????????????????????????????????????? | | ??????????????????????????????????????????? | | ??????????????????????????????????????????? | | ??????????????????????????????????????????? | | ??????????????????????????????????????????? | | ??????????????????????????????????????????? | | ??????????????????????????????????????????? | | ??????????????????????????????????????????? | | ??????????????????????????????????????????? | | ??????????????????????????????????????????? | | ??????????????????????????????????????????? | | ????????????????????####??????????????????? | | ???????????????###### ########???????????? | | ??????????????## # ????????????? | | ??????????###?# #?????????????????? | | ?????????## ## ##????????????????? | | ????????## # #????????????????? | | ????????# @ #????????????????? | | ????????# ##????????????????? | | ????????## ##?????????????????? | | ?????????# ##??????????????????? | | ??????##### ##???????????????????? | | ?????## # dd ##??????????? ????????? | | ?????# ##???????????# ???????? | | ?????# # #????????????# ???????? | | ??????# # #????????????# #??????? | | ?????## ### ##?????????????# #??????? | | ????## < ### ######?????????# #??????? | | ????# ? ######????# #??????? | | ????# ## # #????# #??????? | | ????## #######?# ###### #????# #??????? | | ?????# ##???????# #????# #????# #??????? | | ????## ##???????# #????# #????# #??###?? | | ???## ##??????# #????# #????# ### ##? | | ???# """ ##?????# #????# #????# ## | | ??## """ #?????# #????# #???## # | | ??# """ #?????# #????# ##??# # | | ?# ##?????# ???## #### #? | | ?# ####???????##???# ## ####? | | ?# ##???????????????## ###???? | | ?# ##?????????????????# ##?????? | | ?## ##??????????????????## #??????? | +----------------------------------------------------+ Best States ------------- Heat Dissipation 25 Energy Generation 10 Energy Capacity 250 Matter Stores 300 Matter Capacity 300 Sight Range 16 Robot Scan Range 14 Terrain Scan Range 16 Terrain Scan Density 10 Evasion (%) 44 Recoil Reduction 2 Item Schematics ----------------- None Robot Schematics ------------------ None Fabricated ------------ Nothing Repaired ---------- Assault Rifle | 37% | -10/Materials Alien Tech Used ----------------- None Achievements -------------- None Challenges ------------ None Game ------ Seed TacticalMultireflexWeb Manual? 0 Play Time 00:21:12 Cumulative 59.8 hours Start 2025.05.30 @ 18:15:40 End 2025.05.30 @ 18:35:11 Sessions 1 Manual Loads 0 Difficulty Rogue Special Mode None Game No. 70 Rogue 67 Adventurer 0 Explorer 3 Win Type - Total 0 Types 0/0/0/0/0/0/0/0/0/0 Lore% 11 Gallery% 35 Achievement% 32 Wizard Run 0 Options --------- Layout 0 ASCII 0 Keyboard 0 Movement Numpad Keybinds 0 Fullscreen 2 Font 16/SmallcapsGlow Map View 88x55 Zoom Use 0% Tactical HUD 1 Map Filters NONE Filters NONE Steam 1 RUN: f0be7dee-6626-42f4-b594-59c53f23b62d